bitfinex/quotes_SOLUSD_20241111
["timestamp","ask_amount","ask_price","bid_price","bid_amount"]
[1731286191314,23.776884,210.97,210.92,4.7409]
[1731286191536,62.29833132,210.97,210.92,11.8528]
[1731286191731,38.52144732,210.96,210.92,11.8528]
[1731286191935,23.776884,210.95,210.89,43.26304732]
[1731286192137,58.07920506,211.0,210.89,43.26304732]
[1731286192138,96.60065238,211.0,210.93,38.52144732]
[1731286192344,23.776884,210.99,210.95,4.7404]
[1731286192639,38.52144732,211.01,210.95,16.5915]
[1731286192935,62.29833132,211.0,210.95,16.5915]
[1731286193317,38.52144732,210.99,210.95,16.5915]
[1731286193515,23.776884,211.0,210.95,16.5915]
[1731286193726,23.776884,211.02,210.96,38.52144732]
[1731286194039,38.52144732,211.01,210.95,16.5915]
[1731286194615,62.29833132,211.02,210.95,55.11294732]
[1731286194813,38.52144732,211.03,210.96,38.52144732]
[1731286195010,38.52144732,211.09,210.95,16.5915]
[1731286195011,38.52144732,211.01,210.95,16.5915]
[1731286196752,38.52144732,211.02,210.95,50.37254732]
[1731286196918,23.776884,211.01,210.95,50.37254732]
[1731286197121,38.52144732,211.04,210.97,38.52144732]
[1731286197320,38.52144732,211.09,210.96,38.52144732]
[1731286197321,38.52144732,211.03,210.96,38.52144732]
[1731286197521,38.52144732,211.01,210.95,11.8511]
[1731286197733,38.52144732,211.02,210.96,38.52144732]
[1731286198436,38.52144732,211.02,210.97,16.59]
[1731286200821,38.52144732,211.01,210.97,16.59]
[1731286201725,38.52144732,210.99,210.97,11.85]
[1731286202225,38.52144732,210.98,210.97,11.85]
[1731286202420,38.52144732,211.01,210.97,11.85]
[1731286202620,23.776884,211.05,210.97,11.85]
[1731286202621,38.52144732,211.02,210.97,11.85]
[1731286202841,38.52144732,211.01,210.97,11.85]
[1731286203342,38.52144732,211.0,210.97,11.85]
[1731286204440,38.52144732,211.01,210.97,11.85]
[1731286204652,38.52144732,211.0,210.97,11.85]
[1731286205248,38.52144732,210.98,210.97,11.85]
[1731286206119,38.52144732,210.98,210.92,40.2995]
[1731286206721,38.52144732,211.0,210.93,38.52144732]
[1731286206919,38.52144732,211.01,210.95,20.0]
[1731286207135,23.776884,211.05,210.94,38.52144732]
[1731286207136,38.52144732,211.0,210.94,38.52144732]
[1731286207428,38.52144732,211.0,210.94,20.0]
[1731286207627,38.52144732,211.02,210.95,38.52144732]
[1731286207850,38.52144732,211.01,210.94,58.52144732]
[1731286208238,38.52144732,211.02,210.95,55.21294732]
[1731286208746,23.71262633,211.02,210.95,40.40412633]
[1731286209136,23.71262633,211.02,210.96,20.0]
[1731286209348,23.71262633,211.05,210.98,23.71262633]
[1731286209652,23.71262633,211.03,210.97,30.16222633]
[1731286210036,23.71262633,211.05,210.98,23.71262633]
[1731286210349,23.71262633,211.02,210.98,16.5891]
[1731286210531,23.71262633,211.03,210.98,16.5891]
[1731286211456,23.71262633,211.06,211.0,23.71262633]
[1731286211638,23.71262633,211.08,211.01,23.71262633]
[1731286212340,23.71262633,211.07,211.01,23.71262633]
[1731286212544,23.71262633,211.07,211.02,16.586]
[1731286212740,23.71262633,211.08,211.02,16.586]
[1731286213952,23.71262633,211.09,211.02,40.29862633]
[1731286214156,23.71262633,211.08,211.02,16.586]
[1731286214743,23.71262633,211.09,211.02,40.29862633]
[1731286214948,23.71262633,211.09,211.03,23.71262633]
[1731286215462,23.71262633,211.08,211.02,40.29862633]
[1731286215758,23.71262633,211.1,211.03,23.71262633]
[1731286215960,23.71262633,211.09,211.02,40.29862633]
[1731286217334,23.71262633,211.08,211.02,16.586]
[1731286217534,23.71262633,211.07,211.02,16.586]
[1731286218051,23.71262633,211.05,211.02,11.8472]
[1731286218238,23.71262633,211.05,211.0,4.8391]
[1731286218437,23.71262633,211.05,211.0,4.7391]
[1731286218832,28.513784,211.11,211.0,4.7391]
[1731286219039,23.71262633,211.05,211.0,16.5874]
[1731286219247,23.71262633,211.04,211.0,16.5874]
[1731286219550,23.71262633,211.06,211.0,16.5874]
[1731286220164,23.71262633,211.07,211.01,23.71262633]
[1731286220335,4.7367,211.12,211.03,23.81262633]
[1731286220538,23.71262633,211.1,211.03,23.71262633]
[1731286221036,23.71262633,211.09,211.04,4.7384]
[1731286221355,23.71262633,211.09,211.02,23.71262633]
[1731286221555,23.71262633,211.08,211.02,4.7387]
[1731286222052,23.71262633,211.07,211.02,4.7387]
[1731286222352,23.71262633,211.07,211.0,40.30012633]
[1731286224061,28.45032633,211.07,211.0,16.5875]
[1731286224261,23.71262633,211.04,211.0,11.8483]
[1731286224557,23.71262633,211.04,211.0,16.5876]
[1731286224767,23.71262633,211.05,211.0,16.5876]
[1731286225657,4.7377,211.07,211.0,16.5876]
[1731286225658,28.45032633,211.07,211.0,16.5876]
[1731286225836,23.71262633,211.08,211.01,23.71262633]
[1731286226251,23.776884,211.02,210.96,11.8505]
[1731286226459,23.71262633,211.01,210.96,11.8505]
[1731286226754,23.71262633,211.01,210.96,16.5907]
[1731286227339,23.71262633,211.03,210.96,40.30332633]
[1731286228060,23.71262633,211.03,210.96,16.5907]
[1731286228244,23.71262633,211.01,210.96,16.5907]
[1731286228845,14.82325152,211.01,210.96,16.5907]
[1731286229460,14.82325152,211.03,210.96,31.41395152]
[1731286231458,14.82325152,211.06,210.98,14.82325152]
[1731286231636,14.82325152,211.09,211.0,14.82325152]
[1731286231834,14.82325152,211.07,210.99,14.82325152]
[1731286232054,14.82325152,211.07,210.99,14.92325152]
[1731286232255,14.82325152,211.09,211.01,14.92325152]
[1731286232538,14.82325152,211.09,211.02,6.8435843]
[1731286233059,14.82325152,211.07,211.01,19.56215152]
[1731286233450,14.82325152,211.09,211.03,14.82325152]
[1731286233642,14.82325152,211.1,211.02,14.82325152]
[1731286234043,14.82325152,211.1,211.01,16.5866]
[1731286234044,14.82325152,211.11,211.03,14.82325152]
[1731286234253,14.82325152,211.11,211.04,6.3395]
[1731286234467,4.92818277,211.16,211.04,37.74705152]
[1731286234761,4.7359,211.15,211.04,22.9239]
[1731286234939,14.82325152,211.11,211.04,37.74715152]
[1731286235334,14.82325152,211.13,211.04,22.9239]
[1731286235539,4.7359,211.15,211.04,22.9239]
[1731286235540,14.82325152,211.1,211.04,22.9239]
[1731286237240,19.56005152,211.12,211.04,22.9239]
[1731286238142,14.82325152,211.1,211.04,22.9239]
[1731286238761,23.776884,211.14,211.04,22.9239]
[1731286239059,14.82325152,211.12,211.05,14.82325152]
[1731286239363,14.82325152,211.1,211.04,22.9239]
[1731286241342,23.776884,211.14,211.07,14.82325152]
[1731286241537,14.82325152,211.13,211.05,14.82325152]
[1731286241757,14.82325152,211.11,211.04,45.24795804]
[1731286243043,19.56005152,211.12,211.04,45.24795804]
[1731286243240,14.82325152,211.13,211.06,14.82325152]
[1731286243476,14.92325152,211.13,211.05,14.82325152]
[1731286243655,19.55955152,211.14,211.07,14.82325152]
[1731286243848,14.82325152,211.13,211.05,14.82325152]
[1731286244044,14.92325152,211.13,211.05,14.82325152]
[1731286244267,14.82325152,211.12,211.04,45.24795804]
[1731286244568,19.56005152,211.12,211.04,45.24795804]
[1731286245244,14.82325152,211.11,211.04,30.42470652]
[1731286245663,19.56005152,211.12,211.04,45.24795804]
[1731286246977,14.82325152,211.07,210.99,11.8483]
[1731286247267,14.82325152,211.07,211.0,14.82325152]
[1731286247451,14.82325152,211.07,211.0,22.32405804]
[1731286248251,14.82325152,211.07,211.01,4.7391]
[1731286248467,4.737,211.11,211.02,14.82325152]
[1731286248677,4.737,211.11,211.04,14.82325152]
[1731286248975,14.82325152,211.1,211.02,14.82325152]
[1731286249661,19.56035152,211.1,211.03,4.7386]
[1731286250260,19.56035152,211.1,211.02,19.56205152]
[1731286251162,14.82325152,211.12,211.04,14.82325152]
[1731286251360,14.82325152,211.1,211.02,38.91005804]
[1731286251560,14.82325152,211.1,211.03,7.50080652]
[1731286252057,19.56035152,211.1,211.03,7.50080652]
[1731286253062,19.55995152,211.12,211.04,14.82325152]
[1731286254351,14.82325152,211.1,211.03,7.50080652]
[1731286254677,14.82325152,211.08,211.03,7.50080652]
[1731286256170,4.7373,211.09,211.03,7.50080652]
[1731286257161,4.7373,211.09,211.02,16.586]
[1731286257361,14.82325152,211.08,211.02,16.586]
[1731286259384,14.82325152,211.1,211.02,16.586]
[1731286259670,14.82325152,211.1,211.02,24.08680652]
[1731286260555,4.7373,211.09,211.02,24.08680652]
[1731286260753,14.82325152,211.04,210.98,18.1508]
[1731286261082,4.7373,211.09,211.0,14.82325152]
[1731286261258,19.56055152,211.09,211.0,14.82325152]
[1731286261454,14.82325152,211.07,211.0,14.82325152]
[1731286261791,14.82325152,211.07,210.98,37.71385152]
[1731286262080,14.82325152,211.07,210.98,44.79787768]
[1731286262263,14.82325152,211.05,210.98,37.71385152]
[1731286262454,14.82325152,211.05,210.98,22.8906]
[1731286262659,14.82325152,211.07,210.98,37.71385152]
[1731286262856,14.82325152,211.07,210.98,44.79787768]
[1731286263558,14.82325152,211.07,210.98,37.71385152]
[1731286263961,19.56105152,211.07,210.98,37.71385152]
[1731286264392,14.82325152,211.03,210.98,16.589]
[1731286264758,14.82325152,211.01,210.94,24.7405]
[1731286264985,4.7378,211.07,210.92,6.0305]
[1731286265169,14.82325152,210.97,210.92,6.0305]
[1731286265365,14.82325152,210.93,210.87,0.82348494]
[1731286265574,14.82325152,210.91,210.87,4.7421]
[1731286266059,4.7394,211.0,210.89,14.82325152]
[1731286266258,14.82325152,211.0,210.92,14.82325152]
[1731286266483,14.82325152,210.98,210.9,14.82325152]
[1731286267382,14.82325152,210.97,210.9,14.82325152]
[1731286267568,14.82325152,210.97,210.87,16.5977]
[1731286267569,14.82325152,210.95,210.87,31.42095152]
[1731286267768,14.82325152,210.96,210.88,34.82325152]
[1731286267966,14.82325152,210.97,210.89,14.82325152]
[1731286268165,14.82325152,210.96,210.88,14.82325152]
[1731286268370,14.82325152,210.95,210.88,14.82325152]
[1731286268567,14.82325152,210.96,210.88,14.82325152]
[1731286268768,14.82325152,210.97,210.89,14.82325152]
[1731286269381,39.749584,211.06,210.95,14.82325152]
[1731286269590,14.82325152,211.03,210.95,14.82325152]
[1731286270161,14.82325152,211.03,210.96,16.5907]
[1731286270373,14.82325152,211.01,210.93,14.82325152]
[1731286270670,14.82325152,210.99,210.91,31.41745152]
[1731286270878,14.82325152,210.97,210.91,31.41745152]
[1731286271584,14.82325152,210.98,210.91,31.41745152]
[1731286271788,4.7382,211.05,210.91,31.41745152]
[1731286271789,14.82325152,211.02,210.94,14.82325152]
[1731286272175,14.82325152,211.02,210.91,16.5942]
[1731286272176,20.89165835,211.06,210.96,14.82325152]
[1731286272382,14.82325152,211.05,210.98,14.82325152]
[1731286273697,19.56155152,211.05,210.96,14.82325152]
[1731286273875,14.82325152,211.01,210.94,14.82325152]
[1731286274196,14.82325152,211.01,210.93,16.5931]
[1731286274376,14.82325152,210.99,210.93,11.8522]
[1731286274686,14.82325152,210.97,210.9,4.7415]
[1731286274894,14.82325152,210.95,210.88,31.41965152]
[1731286275197,14.82325152,210.95,210.88,16.5964]
[1731286275765,14.82325152,210.91,210.86,6.0305]
[1731286275971,14.82325152,210.87,210.83,11.8575]
[1731286276182,79.23535658,210.98,210.76,2.48374669]
[1731286276183,14.82325152,210.84,210.78,11.8603]
[1731286276385,21.05615152,210.98,210.76,4.7445]
[1731286276386,14.82325152,210.81,210.76,4.7445]
[1731286276594,23.776884,210.87,210.76,19.56775152]
[1731286276974,14.82325152,210.84,210.76,19.56775152]
[1731286277176,14.82325152,210.83,210.76,4.7445]
[1731286277492,14.82325152,210.82,210.76,4.7445]
[1731286277665,14.82325152,210.82,210.75,11.8623]
[1731286277666,14.82325152,210.8,210.75,11.8623]
[1731286278371,14.82325152,210.81,210.75,11.8623]
[1731286278592,14.82325152,210.82,210.75,26.68555152]
[1731286279070,14.82325152,210.84,210.77,14.82325152]
[1731286279274,14.82325152,210.83,210.77,4.7444]
[1731286279579,14.82325152,210.82,210.75,31.43045152]
[1731286279980,14.82325152,210.83,210.75,31.43045152]
[1731286280377,14.82325152,210.84,210.77,14.82325152]
[1731286280590,43.34293552,210.85,210.77,14.82325152]
[1731286280770,20.3947,210.88,210.81,14.82325152]
[1731286280974,20.3947,210.88,210.76,31.42965152]
[1731286280975,14.82325152,210.87,210.8,14.82325152]
[1731286281179,14.82325152,210.87,210.76,16.6064]
[1731286281180,14.82325152,210.87,210.79,14.82325152]
[1731286281480,72.90245658,210.87,210.79,14.82325152]
[1731286281675,72.90245658,210.87,210.8,14.82325152]
[1731286281987,35.21795152,210.88,210.81,14.82325152]
[1731286282189,14.82325152,210.9,210.83,14.82325152]
[1731286282372,14.82325152,210.88,210.81,14.82325152]
[1731286282573,14.82325152,210.88,210.8,11.8592]
[1731286282896,14.82325152,210.85,210.77,19.56775152]
[1731286283073,14.82325152,210.84,210.77,14.82325152]
[1731286283400,0.1,210.89,210.76,4.7446]
[1731286283401,14.82325152,210.86,210.79,14.82325152]
[1731286283576,23.776884,210.85,210.79,14.82325152]
[1731286284179,14.82325152,210.87,210.79,14.82325152]
[1731286284180,23.776884,210.86,210.79,14.82325152]
[1731286284384,38.60013552,210.86,210.79,14.82325152]
[1731286285082,14.82325152,210.85,210.78,4.7441]
[1731286285278,23.776884,210.84,210.78,19.56735152]
[1731286285615,23.776884,210.84,210.79,14.82325152]
[1731286285775,23.776884,210.87,210.82,14.82325152]
[1731286286087,14.82325152,210.92,210.84,14.82325152]
[1731286286285,14.82325152,210.9,210.83,14.82325152]
[1731286286677,14.82325152,210.92,210.84,14.82325152]
[1731286287200,15.7116,210.94,210.76,14.82325152]
[1731286287201,30.53485152,210.94,210.87,14.82325152]
[1731286287491,30.53485152,210.94,210.86,4.7424]
[1731286287492,14.82325152,210.92,210.86,4.7424]
[1731286287877,14.82325152,210.96,210.89,14.82325152]
[1731286288471,14.82325152,210.98,210.89,14.82325152]
[1731286288676,14.82325152,210.98,210.91,14.82325152]
[1731286288897,14.82325152,211.0,210.93,14.82325152]
[1731286289106,14.82325152,211.0,210.91,14.82325152]
[1731286289599,14.82325152,210.94,210.87,14.82325152]
[1731286289797,14.82325152,210.96,210.89,14.82325152]
[1731286289997,0.1,211.01,210.89,14.82325152]
[1731286289998,14.82325152,210.98,210.89,14.82325152]
[1731286290214,23.776884,210.97,210.89,14.82325152]
[1731286290709,14.82325152,210.96,210.89,14.82325152]
[1731286291015,14.82325152,210.96,210.87,14.82325152]
[1731286291186,14.82325152,210.92,210.85,26.67975152]
[1731286291395,14.82325152,210.94,210.85,26.67975152]
[1731286291784,14.82325152,210.92,210.85,26.67975152]
[1731286292732,14.82325152,210.92,210.85,31.42245152]
[1731286292898,14.82325152,210.91,210.85,16.5992]
[1731286293089,23.776884,210.97,210.85,16.5992]
[1731286293090,14.82325152,210.92,210.85,31.42245152]
[1731286295404,14.82325152,210.92,210.85,16.5992]
[1731286296105,19.56435152,210.92,210.85,16.5992]
[1731286297400,23.776884,210.92,210.85,31.42245152]
[1731286298006,14.82325152,210.93,210.85,16.5992]
[1731286298206,14.82325152,210.91,210.85,16.5992]
[1731286299711,4.7405,210.95,210.87,14.82325152]
[1731286300006,72.90245658,210.96,210.87,14.82325152]
[1731286300198,77.64275658,210.96,210.87,14.82325152]
[1731286300502,14.82325152,210.94,210.87,14.82325152]
[1731286300896,14.82325152,210.94,210.85,31.42245152]
[1731286301288,14.82325152,210.9,210.85,11.8565]
[1731286301487,14.82325152,210.89,210.85,11.8565]
[1731286301714,14.82325152,210.89,210.83,6.5942]
[1731286302012,14.82325152,210.89,210.8,19.56695152]
[1731286302199,14.82325152,210.89,210.81,14.82325152]
[1731286302402,14.82325152,210.89,210.82,14.82325152]
[1731286302714,14.82325152,210.9,210.82,14.82325152]
[1731286302894,72.90245658,210.92,210.84,14.82325152]
[1731286303210,72.90245658,210.92,210.85,4.7427]
[1731286303393,14.82325152,210.92,210.85,4.7427]
[1731286303997,19.56435152,210.92,210.85,4.7427]
[1731286304200,14.82325152,210.9,210.85,4.7427]
[1731286304397,14.82325152,210.9,210.84,26.68055152]
[1731286304398,14.82325152,210.88,210.8,26.68275152]
[1731286304708,14.82325152,210.89,210.82,14.82325152]
[1731286305099,14.82325152,210.89,210.81,14.82325152]
[1731286305300,14.82325152,210.89,210.8,16.6031]
[1731286305301,14.82325152,210.87,210.8,16.6031]
[1731286305607,14.82325152,210.88,210.81,14.82325152]
[1731286306608,14.82325152,210.88,210.82,4.7433]
[1731286307201,19.56525152,210.88,210.82,4.7433]
[1731286307400,14.82325152,210.87,210.8,16.6032]
[1731286308291,14.82325152,210.88,210.8,31.42645152]
[1731286308491,14.82325152,210.88,210.81,14.82325152]
[1731286309116,14.82325152,210.89,210.81,14.82325152]
[1731286309718,19.56515152,210.89,210.82,4.7433]
[1731286310108,19.56515152,210.89,210.81,19.56675152]
[1731286310294,14.82325152,210.89,210.82,14.82325152]
[1731286310815,19.56505152,210.89,210.82,14.82325152]
[1731286311192,14.82325152,210.89,210.82,14.82325152]
[1731286311394,19.56475152,210.91,210.84,14.82325152]
[1731286311595,19.56475152,210.91,210.84,19.56595152]
[1731286312211,14.82325152,210.89,210.84,4.7427]
[1731286312414,4.7415,210.91,210.84,4.7427]
[1731286312415,19.56475152,210.91,210.84,4.7427]
[1731286312712,14.823252,210.89,210.84,4.7427]
[1731286312915,174.62325152,210.95,210.88,14.82325152]
[1731286313094,14.82325152,210.94,210.86,14.82325152]
[1731286313290,14.82325152,210.91,210.84,4.7427]
[1731286313712,14.82325152,210.92,210.84,19.56595152]
[1731286314297,174.62325152,210.94,210.86,14.82325152]
[1731286314514,18.95917,210.92,210.86,14.82325152]
[1731286314721,18.95917,210.92,210.86,19.56565152]
[1731286315194,33.78242152,210.92,210.86,4.7424]
[1731286315398,38.52352152,210.92,210.86,4.7424]
[1731286315801,38.52352152,210.92,210.84,19.56595152]
[1731286317196,38.52352152,210.92,210.83,11.8578]
[1731286317197,14.82325152,210.9,210.82,14.82325152]
[1731286317402,23.70027,210.92,210.8,14.82325152]
[1731286317403,14.82325152,210.88,210.8,14.82325152]
[1731286317698,14.82325152,210.88,210.81,4.7435]
[1731286317919,14.82325152,210.9,210.82,14.82325152]
[1731286318599,4.7418,210.89,210.82,14.82325152]
[1731286318799,14.82325152,210.86,210.78,21.25975152]
[1731286319118,14.82325152,210.84,210.76,19.56775152]
[1731286319697,159.8,210.87,210.82,14.92325152]
[1731286319918,4.94478212,210.91,210.86,29.64650304]
[1731286320231,159.8,211.01,210.9,14.82325152]
[1731286320395,4.94214276,211.01,210.94,14.82325152]
[1731286320592,9.68124276,211.01,210.94,14.82325152]
[1731286321118,4.94214276,211.01,210.96,14.82325152]
[1731286321297,164.5388,211.03,210.96,14.82325152]
[1731286321298,4.7388,211.03,210.96,14.82325152]
[1731286321499,14.82325152,211.04,210.96,14.82325152]
[1731286322221,14.82325152,211.04,210.94,16.5922]
[1731286322222,14.82325152,211.0,210.94,11.8517]
[1731286322401,10.98929552,210.99,210.92,19.56415152]
[1731286322599,14.82325152,211.0,210.92,19.56415152]
[1731286323099,14.82325152,211.0,210.89,11.8543]
[1731286323100,14.82325152,210.98,210.9,14.82325152]
[1731286323815,14.82325152,211.0,210.94,14.82325152]
[1731286324003,38.60013552,211.02,210.94,14.82325152]
[1731286324515,14.82325152,211.0,210.92,14.82325152]
[1731286325105,14.82325152,211.0,210.93,4.7409]
[1731286325428,14.82325152,210.98,210.91,4.7412]
[1731286325919,14.82325152,210.96,210.91,4.7412]
[1731286326119,183.576884,210.99,210.83,9.18671412]
[1731286326120,14.82325152,210.93,210.85,26.67965152]
[1731286326417,14.82325152,210.89,210.85,11.8564]
[1731286327703,11.8564,210.89,210.85,11.8564]
[1731286328105,26.67965152,210.89,210.85,11.8564]
[1731286328505,26.67965152,210.89,210.83,6.6509]
[1731286328905,26.67965152,210.89,210.83,11.394]
[1731286328906,11.8564,210.89,210.83,11.394]
[1731286329104,26.67965152,210.89,210.83,11.394]
[1731286329919,14.82325152,210.88,210.83,6.6509]
[1731286330106,14.82325152,210.85,210.81,4.7435]
[1731286330304,14.82325152,210.84,210.8,11.859]
[1731286330931,14.82325152,210.86,210.8,16.6028]
[1731286333124,179.36555152,210.87,210.8,31.42605152]
[1731286333517,159.8,210.87,210.82,14.82325152]
[1731286333735,159.8,210.87,210.83,14.82325152]
[1731286334026,159.8,210.87,210.81,14.82325152]
[1731286334229,14.82325152,210.83,210.78,6.0494]
[1731286334812,14.82325152,210.84,210.78,6.0494]
[1731286335209,159.8,210.86,210.73,37.74565152]
[1731286335210,14.82325152,210.8,210.73,37.74565152]
[1731286335409,159.8,210.82,210.76,14.82325152]
[1731286335630,159.8,210.82,210.76,19.56785152]
[1731286336230,14.82325152,210.81,210.74,14.82325152]
[1731286336813,164.5434,210.82,210.76,14.82325152]
[1731286337135,179.36665152,210.82,210.75,14.82325152]
[1731286337337,179.36665152,210.82,210.73,18.177]
[1731286337338,159.8,210.82,210.77,14.82325152]
[1731286338037,174.62325152,210.82,210.75,14.82325152]
[1731286338335,174.62325152,210.82,210.74,16.608]
[1731286338336,14.82325152,210.81,210.74,31.43125152]
[1731286338512,4.7434,210.82,210.76,14.82325152]
[1731286338718,11.8564,210.89,210.81,14.82325152]
[1731286338920,16.5982,210.89,210.75,20.0]
[1731286339637,31.42145152,210.89,210.81,14.82325152]
[1731286339845,11.8564,210.89,210.83,14.82325152]
[1731286340020,4.7415,210.91,210.85,14.82325152]
[1731286340220,19.56475152,210.91,210.84,14.82325152]
[1731286340424,19.56475152,210.91,210.75,20.0]
[1731286340425,14.82325152,210.85,210.75,20.0]
[1731286340627,14.82325152,210.85,210.74,16.6076]
[1731286340628,14.82325152,210.85,210.78,14.82325152]
[1731286340832,14.82325152,210.84,210.77,14.82325152]
[1731286341134,14.82325152,210.85,210.78,14.82325152]
[1731286341724,38.60013552,210.84,210.77,14.82325152]
[1731286341926,14.82325152,210.83,210.75,14.82325152]
[1731286342124,23.776884,210.84,210.74,11.8625]
[1731286342125,38.60013552,210.84,210.76,14.82325152]
[1731286342333,14.82325152,210.82,210.75,14.82325152]
[1731286342631,14.82325152,210.83,210.76,14.82325152]
[1731286342825,23.776884,210.82,210.76,14.82325152]
[1731286343028,43.34353552,210.82,210.75,14.82325152]
[1731286343339,14.82325152,210.81,210.74,14.82325152]
[1731286343537,43.34353552,210.82,210.75,14.82325152]
[1731286343835,20.0,210.81,210.74,14.82325152]
[1731286344148,34.82325152,210.81,210.74,14.82325152]
[1731286344720,4.7438,210.8,210.73,25.88205152]
[1731286345267,4.7438,210.8,210.74,14.82325152]
[1731286347231,4.7438,210.8,210.71,16.4474]
[1731286347232,34.82325152,210.78,210.7,26.68835152]
[1731286347427,14.82325152,210.77,210.7,26.68835152]
[1731286347626,20.0,210.79,210.73,14.82325152]
[1731286348431,14.82325152,210.78,210.71,14.82325152]
[1731286348649,14.82325152,210.78,210.7,26.68835152]
[1731286348946,14.82325152,210.77,210.7,26.68835152]
[1731286350028,14.82325152,210.72,210.67,6.6289]
[1731286350633,14.82325152,210.72,210.65,26.69105152]
[1731286350839,14.82325152,210.72,210.65,16.615]
[1731286351745,14.82325152,210.68,210.63,4.7474]
[1731286352242,14.82325152,210.67,210.61,4.7479]
[1731286352776,14.82325152,210.68,210.61,31.44135152]
[1731286353253,19.56925152,210.71,210.63,14.82325152]
[1731286353555,24.50746489,210.75,210.68,14.82325152]
[1731286353869,20.0,210.74,210.68,14.82325152]
[1731286354538,20.0,210.74,210.68,19.56965152]
[1731286354844,20.0,210.75,210.69,14.82325152]
[1731286355035,14.82325152,210.74,210.68,4.7464]
[1731286355234,14.82325152,210.72,210.66,4.7468]
[1731286355646,20.0,210.75,210.62,14.82325152]
[1731286355833,14.82325152,210.68,210.61,14.82325152]
[1731286356038,14.82325152,210.68,210.6,14.82325152]
[1731286356237,14.82325152,210.67,210.6,14.82325152]
[1731286356644,14.82325152,210.67,210.6,19.57145152]
[1731286356840,14.82325152,210.66,210.59,31.44315152]
[1731286357360,14.82325152,210.63,210.59,11.8714]
[1731286357652,14.82325152,210.6,210.53,14.82325152]
[1731286357834,14.82325152,210.6,210.53,19.57305152]
[1731286358033,14.82325152,210.6,210.53,31.44775152]
[1731286358240,20.0,210.65,210.59,14.82325152]
[1731286358832,28.54118209,210.66,210.59,23.79408209]
[1731286359143,20.0,210.65,210.59,23.79408209]
[1731286359333,20.0,210.65,210.58,11.8719]
[1731286359334,43.79408209,210.65,210.58,11.8719]
[1731286359534,23.79408209,210.64,210.58,11.8719]
[1731286359734,43.79408209,210.65,210.58,11.8719]
[1731286359930,43.79408209,210.65,210.57,23.79408209]
[1731286360234,20.0,210.65,210.58,23.79408209]
[1731286360437,4.7471,210.66,210.6,23.79408209]
[1731286360857,179.8,210.67,210.62,23.79408209]
[1731286361041,179.8,210.67,210.61,23.79408209]
[1731286361235,203.59408209,210.67,210.6,23.79408209]
[1731286361437,15.0474,210.71,210.64,23.79408209]
[1731286362041,23.79408209,210.72,210.64,23.79408209]
[1731286362451,4.7459,210.71,210.64,23.79408209]
[1731286362659,28.53998209,210.71,210.64,23.79408209]
[1731286362862,20.0,210.7,210.64,23.79408209]
[1731286363069,23.79408209,210.69,210.62,23.79408209]
[1731286363357,23.79408209,210.67,210.6,23.79408209]
[1731286363558,47.57096609,210.69,210.61,23.79408209]
[1731286363764,20.0,210.67,210.63,23.79408209]
[1731286364561,24.7466,210.68,210.62,23.79408209]
[1731286367262,48.54068209,210.68,210.61,23.79408209]
[1731286368342,24.7466,210.68,210.61,23.79408209]
[1731286368949,24.7466,210.68,210.62,23.79408209]
[1731286369259,43.72998209,210.76,210.67,23.79408209]
[1731286369455,43.72998209,210.76,210.69,23.79408209]
[1731286369654,43.72998209,210.76,210.68,23.79408209]
[1731286370142,43.72998209,210.76,210.68,28.54048209]
[1731286370339,20.0,210.75,210.68,28.54048209]
[1731286371364,4.7451,210.74,210.68,28.54048209]
[1731286372752,4.7451,210.74,210.68,23.79408209]
[1731286373867,24.745,210.75,210.69,23.79408209]
[1731286375150,24.745,210.75,210.68,23.79408209]
[1731286375651,24.745,210.75,210.69,23.79408209]
[1731286378079,20.0,210.75,210.69,23.79408209]
[1731286378375,20.0,210.75,210.62,6.624]
[1731286378376,19.9358,210.76,210.71,23.79408209]
[1731286378546,20.0,210.75,210.71,23.79408209]
[1731286378754,159.8,210.8,210.73,23.79408209]
[1731286378755,28.53808209,210.8,210.73,23.79408209]
[1731286378946,4.744,210.8,210.75,23.79408209]
[1731286379563,4.744,210.8,210.73,23.79408209]
[1731286379564,28.53808209,210.8,210.73,23.79408209]
[1731286379768,23.79408209,210.76,210.69,23.79408209]
[1731286379954,23.79408209,210.76,210.68,23.79408209]
[1731286380153,24.745,210.75,210.68,28.54048209]
[1731286380663,24.745,210.75,210.69,23.79408209]
[1731286380871,20.0,210.76,210.7,14.85577037]
[1731286381076,164.5441,210.79,210.72,14.85577037]
[1731286381258,20.0,210.78,210.73,14.85577037]
[1731286381449,34.69937037,210.81,210.68,16.6127]
[1731286381651,14.85577037,210.84,210.76,14.85577037]